fUST/lending_fUST_20250807
["ID","MTS","AMOUNT","RATE_DAILY","PERIOD"]
[377699771,1754496639425,-300.0,0.00028697,2]
[377699772,1754496639436,-300.0,0.00028697,2]
[377699773,1754496639446,-250.0,0.00028697,2]
[377699774,1754496639455,-300.0,0.00028697,2]
[377699775,1754496639465,-250.0,0.00028697,2]
[377699776,1754496639475,-300.0,0.00028697,2]
[377699777,1754496639489,-250.0,0.00028697,2]
[377699778,1754496639499,-22188.54324152,0.00028697,2]
[377699779,1754496639508,-300.0,0.00028697,2]
[377699780,1754496639518,-250.0,0.00028697,2]
[377699781,1754496639528,-250.0,0.00028697,2]
[377699782,1754496639537,-370.81086346,0.00028697,2]
[377699783,1754496639547,-151.0,0.00028697,2]
[377699784,1754496639559,-151.0,0.00028697,2]
[377699785,1754496639569,-151.0,0.00028697,2]
[377699786,1754496639578,-151.0,0.00028697,2]
[377699787,1754496639587,-151.0,0.00028697,2]
[377699788,1754496639597,-151.0,0.00028697,2]
[377699789,1754496639607,-151.0,0.00028697,2]
[377699790,1754496639617,-151.0,0.00028697,2]
[377699791,1754496639627,-829.77291841,0.00028752,2]
[377699792,1754496639639,-2672.36,0.000289,7]
[377699793,1754496639649,-6942.89,0.000289,7]
[377699794,1754496639664,-1568.25,0.000289,7]
[377699795,1754496639674,-166.0,0.00028935,2]
[377699796,1754496639686,-600.0,0.00028935,2]
[377699797,1754496639696,-600.0,0.00028935,2]
[377699798,1754496639705,-535.93,0.00028935,2]
[377699799,1754496639715,-2000.0,0.00029016,2]
[377699800,1754496639725,-511.54274142,0.00029016,5]
[377699802,1754496639736,-163.0,0.00029052,5]
[377699804,1754496639747,-660.0,0.00029078,2]
[377699805,1754496639757,-151.0,0.000291,20]
[377699807,1754496639768,-151.0,0.000291,13]
[377699809,1754496639779,-151.0,0.000291,19]
[377699811,1754496639788,-163.866621,0.0002911,2]
[377699812,1754496639798,-180.0,0.00029187,2]
[377699813,1754496639807,-347.0,0.00029187,2]
[377699814,1754496639819,-587.0,0.00029187,2]
[377699815,1754496639829,-1303.0,0.00029194,2]
[377699816,1754496639839,-500.0,0.00029196,2]
[377699817,1754496639849,-1500.0,0.00029196,5]
[377699818,1754496639859,-152.18536256,0.00029221,5]
[377699819,1754496639868,-510.79357348,0.00029221,5]
[377699820,1754496639879,-197.32,0.00029395,30]
[377699821,1754496639888,-394.09,0.00029406,15]
[377699822,1754496639898,-1360.0,0.00029449,2]
[377699823,1754496639909,-394.09,0.00029506,15]
[377699824,1754496639918,-3304.30630286,0.00029536,12]
[377699825,1754496639928,-2141.88890702,0.00029564,2]
[377699826,1754496639939,-394.09,0.00029606,15]
[377699827,1754496639948,-760.0,0.00029626,2]
[377699828,1754496639958,-151.0,0.000297,10]
[377699829,1754496639967,-394.09,0.00029706,15]
[377699830,1754496639977,-2000.0,0.00029744,5]
[377699831,1754496639987,-151.0,0.000298,17]
[377699832,1754496639996,-1975.03,0.000298,2]
[377699833,1754496640006,-394.09,0.00029806,15]
[377699834,1754496640016,-666.0,0.00029901,2]
[377699835,1754496640025,-394.09,0.00029906,15]
[377699836,1754496640035,-255.0,0.00029962,2]
[377699837,1754496640045,-165.65578546,0.00029962,2]
[377699838,1754496640054,-200.0,0.00029994,15]
[377699839,1754496640064,-200.0,0.00029994,15]
[377699840,1754496640074,-300.0,0.00029994,15]
[377699841,1754496640083,-1437.374485,0.0003,8]
[377699842,1754496640093,-394.09,0.00030006,15]
[377699843,1754496640103,-5521.19469172,0.0003005,2]
[377699844,1754496640112,-151.0,0.00030066,2]
[377699845,1754496640121,-12328.08239614,0.00030066,2]
[377699846,1754496640131,-500.0,0.00030073,5]
[377699847,1754496640140,-500.0,0.00030073,5]
[377699848,1754496640150,-500.0,0.00030073,5]
[377699849,1754496640159,-435.7221146,0.00030073,5]
[377699850,1754496640169,-500.0,0.00030073,5]
[377699851,1754496640179,-501.43765266,0.00030073,5]
[377699852,1754496640189,-500.0,0.00030073,5]
[377699853,1754496640198,-502.29930668,0.00030073,5]
[377699854,1754496640208,-2672.36,0.000301,7]
[377699855,1754496640218,-6942.89,0.000301,7]
[377699856,1754496640228,-1568.25,0.000301,7]
[377699857,1754496640239,-394.09,0.00030106,15]
[377699858,1754496640248,-54631.2322769,0.00030137,2]
[377699859,1754496640258,-160.262928,0.00030151,2]
[377699860,1754496640269,-531.6077824,0.00030173,5]
[377699861,1754496640279,-150.0,0.00030173,3]
[377699862,1754496640288,-860.0,0.00030174,2]
[377699864,1754496640298,-394.09,0.00030206,15]
[377699865,1754496640308,-2500.0,0.00030292,5]
[377699866,1754496640317,-151.0,0.000303,19]
[377699867,1754496640327,-394.09,0.00030306,15]
[377699868,1754496640337,-197.32,0.00030314,30]
[377699869,1754496640346,-153.0,0.00030332,2]
[377699870,1754496640356,-153.0,0.00030332,2]
[377699871,1754496640365,-153.0,0.00030332,2]
[377699872,1754496640375,-153.0,0.00030332,2]
[377699873,1754496640385,-153.0,0.00030332,2]
[377699874,1754496640395,-153.0,0.00030332,2]
[377699875,1754496640406,-153.0,0.00030332,2]
[377699876,1754496640416,-153.0,0.00030332,2]
[377699877,1754496640426,-153.0,0.00030332,2]
[377699878,1754496640437,-153.0,0.00030332,2]
[377699879,1754496640447,-153.0,0.00030332,2]
[377699880,1754496640456,-153.0,0.00030332,2]
[377699881,1754496640466,-153.0,0.00030332,2]
[377699882,1754496640475,-153.0,0.00030332,2]
[377699883,1754496640485,-153.0,0.00030332,2]
[377699884,1754496640495,-153.0,0.00030332,2]
[377699885,1754496640504,-153.0,0.00030332,2]
[377699886,1754496640514,-153.0,0.00030332,2]
[377699888,1754496640524,-153.0,0.00030332,2]
[377699890,1754496640533,-153.0,0.00030332,2]
[377699892,1754496640543,-153.0,0.00030332,2]
[377699893,1754496640552,-153.0,0.00030332,2]
[377699895,1754496640562,-153.0,0.00030332,2]
[377699897,1754496640571,-153.0,0.00030332,2]
[377699899,1754496640580,-153.0,0.00030332,2]
[377699901,1754496640590,-153.0,0.00030332,2]
[377699903,1754496640599,-153.0,0.0003034,2]
[377699905,1754496640609,-153.0,0.0003034,2]
[377699907,1754496640618,-153.0,0.0003034,2]
[377699908,1754496640628,-153.0,0.0003034,2]
[377699910,1754496640638,-153.0,0.0003034,2]
[377699912,1754496640647,-153.0,0.0003034,2]
[377699914,1754496640656,-153.0,0.0003034,2]
[377699916,1754496640666,-153.0,0.0003034,2]
[377699918,1754496640675,-153.0,0.0003034,2]
[377699920,1754496640686,-153.0,0.0003034,2]
[377699922,1754496640696,-153.0,0.0003034,2]
[377699923,1754496640705,-153.0,0.0003034,2]
[377699924,1754496640715,-153.0,0.0003034,2]
[377699925,1754496640725,-153.0,0.0003034,2]
[377699926,1754496640738,-153.0,0.0003034,2]
[377699927,1754496640750,-153.0,0.0003034,2]
[377699928,1754496640759,-153.0,0.0003034,2]
[377699930,1754496640769,-153.0,0.0003034,2]
[377699932,1754496640779,-153.0,0.0003034,2]
[377699934,1754496640790,-153.0,0.0003034,2]
[377699936,1754496640800,-153.0,0.0003034,2]
[377699938,1754496640811,-153.0,0.0003034,2]
[377699940,1754496640823,-153.0,0.0003034,2]
[377699942,1754496640832,-153.0,0.0003034,2]
[377699944,1754496640842,-153.0,0.0003034,2]
[377699946,1754496640852,-153.0,0.0003034,2]
[377699947,1754496640862,-153.0,0.0003034,2]
[377699948,1754496640872,-153.0,0.0003034,2]
[377699949,1754496640882,-153.0,0.0003034,2]
[377699950,1754496640891,-153.0,0.0003034,2]
[377699951,1754496640902,-153.0,0.0003034,2]
[377699952,1754496640911,-153.0,0.0003034,2]
[377699953,1754496640921,-153.0,0.0003034,2]
[377699954,1754496640931,-153.0,0.0003034,2]
[377699955,1754496640942,-153.0,0.0003034,2]
[377699956,1754496640951,-153.0,0.0003034,2]
[377699957,1754496640961,-153.0,0.0003034,2]
[377699958,1754496640970,-153.0,0.0003034,2]
[377699959,1754496640980,-153.0,0.0003034,2]
[377699960,1754496640989,-153.0,0.0003034,2]
[377699961,1754496641001,-153.0,0.0003034,2]
[377699962,1754496641012,-153.0,0.0003034,2]
[377699963,1754496641023,-153.0,0.0003034,2]
[377699964,1754496641032,-153.0,0.0003034,2]
[377699965,1754496641042,-153.0,0.0003034,2]
[377699966,1754496641051,-153.0,0.0003034,2]
[377699967,1754496641061,-153.0,0.0003034,2]
[377699968,1754496641071,-153.0,0.0003034,2]
[377699969,1754496641080,-153.0,0.0003034,2]
[377699970,1754496641090,-153.0,0.0003034,2]
[377699971,1754496641099,-394.09,0.00030406,15]
[377699972,1754496641109,-600.0,0.00030471,2]
[377699973,1754496641119,-600.0,0.00030471,2]
[377699974,1754496641129,-535.93,0.00030471,2]
[377699975,1754496641138,-151.0,0.000305,13]
[377699976,1754496641147,-1000.0,0.000305,8]
[377699977,1754496641157,-394.09,0.00030506,15]
[377699978,1754496641167,-3304.30630286,0.0003051,14]
[377699979,1754496641176,-394.09,0.00030606,15]
[377699980,1754496641187,-1004.75035478,0.00030621,5]
[377699981,1754496641197,-1000.0,0.00030621,5]
[377699982,1754496641206,-1000.0,0.00030621,5]
[377699983,1754496641215,-1000.0,0.00030621,5]
[377699984,1754496641227,-1000.0,0.00030621,5]
[377699985,1754496641237,-394.09,0.00030706,15]
[377699986,1754496641247,-960.0,0.00030722,2]
[377699987,1754496641256,-200.44858,0.00030726,2]
[377699988,1754496641266,-394.09,0.00030806,15]
[377699989,1754496641276,-3000.0,0.0003084,5]
[377699990,1754496641431,-394.09,0.00030906,15]
[377699991,1754496641443,-250.0,0.00030928,2]
[377699992,1754496641452,-800.0,0.0003094,2]
[377699993,1754496641462,-160.262928,0.00030968,5]
[377699994,1754496641471,-1000.0,0.00031,120]
[377699995,1754496641480,-433447.1624788,0.00031,2]
[377699996,1754496641490,-1000.0,0.00031,8]
[377699997,1754496641499,-394.09,0.00031006,15]
[377699998,1754496641510,-1975.03,0.000311,2]
[377699999,1754496641519,-394.09,0.00031106,15]
[377700000,1754496641529,-1303.33441646,0.00031148,120]
[377700001,1754496641539,-1500.0,0.00031168,5]
[377700002,1754496641548,-1500.0,0.00031168,5]
[377700003,1754496641558,-1049.24555802,0.00031168,5]
[377700004,1754496641568,-151.0,0.000312,10]
[377700005,1754496641578,-394.09,0.00031206,15]
[377700006,1754496641587,-197.32,0.00031234,30]
[377700007,1754496641598,-565.50866178,0.0003127,2]
[377700008,1754496641607,-993.85,0.000313,2]
[377700009,1754496641617,-2672.36,0.000313,7]
[377700010,1754496641627,-6942.89,0.000313,7]
[377700011,1754496641636,-1568.25,0.000313,7]
[377700012,1754496641646,-394.09,0.00031306,15]
[377700013,1754496641655,-3500.0,0.00031388,5]
[377700014,1754496641665,-394.09,0.00031406,15]
[377700015,1754496641676,-151.0,0.00031435,2]
[377700016,1754496641686,-1357.8,0.0003145,7]
[377700017,1754496641696,-500.0,0.0003148,5]
[377700018,1754496641706,-3304.30630286,0.00031483,16]
[377700019,1754496641715,-1000.0,0.000315,8]
[377700020,1754496641725,-394.09,0.00031506,15]
[377700021,1754496641734,-394.09,0.00031606,15]
[377700022,1754496641747,-823.0,0.00031623,2]
[377700023,1754496641757,-800.0,0.00031689,2]
[377700024,1754496641767,-394.09,0.00031706,15]
[377700025,1754496641776,-2000.0,0.00031716,5]
[377700026,1754496641787,-2000.0,0.00031716,5]
[377700027,1754496641797,-800.0,0.00031717,2]
[377700028,1754496641807,-796.49909775,0.00031717,2]
[377700029,1754496641818,-800.0,0.00031723,2]
[377700030,1754496641828,-800.0,0.00031767,2]
[377700031,1754496641838,-200.0,0.00031773,5]
[377700032,1754496641848,-12134.6212045,0.000318,2]
[377700033,1754496641857,-5521.19469172,0.000318,2]
[377700034,1754496641867,-394.09,0.00031806,15]
[377700035,1754496641876,-800.0,0.00031816,2]
[377700036,1754496641885,-800.0,0.00031832,2]
[377700037,1754496641895,-728.13577259,0.00031834,2]
[377700038,1754496641904,-160.262928,0.00031882,20]
[377700039,1754496641914,-160.93899496,0.00031899,10]
[377700040,1754496641924,-567146.03,0.000319,2]
[377700041,1754496641934,-568383.24309435,0.000319,2]
[377700042,1754496642060,-9674.9859928,0.000319,2]
[377700043,1754496642165,16986.59530566,0.00024771,2]
[377700044,1754496642192,20000.0,0.00024771,2]
[377700045,1754496642216,20000.0,0.00024771,2]
[377700046,1754496642243,20000.0,0.00024771,2]
[377700047,1754496642268,20000.0,0.00024771,2]
[377700048,1754496642292,20000.0,0.00024771,2]
[377700049,1754496642316,20000.0,0.00024771,2]
[377700050,1754496642340,15000.0,0.00024771,2]
[377700051,1754496642364,15000.0,0.00024771,2]
[377700052,1754496642387,15000.0,0.00024771,2]
[377700053,1754496642413,15000.0,0.00024771,2]
[377700054,1754496642438,15000.0,0.00024771,2]
[377700055,1754496642463,15000.0,0.00024771,2]
[377700056,1754496642490,15000.0,0.00024771,2]
[377700057,1754496642514,15000.0,0.00024771,2]
[377700058,1754496642537,15000.0,0.00024771,2]
[377700059,1754496642562,15000.0,0.00024771,2]
[377700060,1754496642588,15000.0,0.00024771,2]
[377700061,1754496642612,15000.0,0.00024771,2]
[377700062,1754496642638,15000.0,0.00024771,2]
[377700063,1754496642663,15000.0,0.00024771,2]
[377700064,1754496642688,15000.0,0.00024771,2]
[377700066,1754496642712,8013.40469434,0.00024771,2]
[377700072,1754496642836,-500.0,0.00026241,2]
[377700074,1754496642847,-500.0,0.00026515,2]
[377700076,1754496642857,-13.12979383,0.00026789,2]
[377700101,1754496645045,-486.87020617,0.00026789,2]
[377700102,1754496645056,-312.16666667,0.00026922,2]
[377700103,1754496645066,-500.0,0.00027063,2]
[377700104,1754496645075,-500.0,0.00027337,2]
[377700105,1754496645086,-151.0,0.00027611,2]
[377700106,1754496645095,-151.0,0.00028697,2]
[377700107,1754496645105,-151.0,0.00028697,2]
[377700108,1754496645114,-151.0,0.00028697,2]
[377700109,1754496645124,-500.0,0.00028697,2]
[377700110,1754496645133,-1990.86265397,0.00029091,2]
[377700111,1754496645143,-257.44,0.0003189,10]
[377700112,1754496645152,-125762.98708805,0.000319,2]
[377700113,1754496645164,-7610.44,0.000319,2]
[377700150,1754496646370,-2763.45649466,0.000319,2]
[377700155,1754496661219,150.0,0.00023965,2]
[377700156,1754496679472,275.69,0.00023537,2]
[377700157,1754496699910,5000.0,0.00019178,2]
[377700158,1754496701421,527.25,0.00024634,2]
[377700159,1754496711701,600.0,0.000301,120]
[377700160,1754496741086,737.75,0.000301,120]
[377700161,1754496770539,468.67,0.00024686,2]
[377700162,1754496839367,416.59,0.00024689,2]
[377700163,1754496844643,148.39530566,0.0002,3]
[377700164,1754496844667,11.60469434,0.0002,3]
[377700165,1754496857956,150.49829437,8.3e-07,2]
[377700166,1754496858195,150.49829437,8.3e-07,2]
[377700167,1754496858312,150.49829437,8.3e-07,2]
[377700168,1754496858411,150.49829437,8.3e-07,2]
[377700169,1754496858548,150.49829437,8.3e-07,2]
[377700170,1754496858642,150.49829437,8.3e-07,2]
[377700171,1754496858752,150.49829437,8.3e-07,2]
[377700172,1754496858859,150.49829437,8.3e-07,2]
[377700173,1754496858972,150.49829437,8.3e-07,2]
[377700174,1754496908571,370.31,0.00023517,2]
[377700175,1754496915590,666.0,0.00024582,2]
[377700176,1754496926074,161.4319093,0.00024751,2]
[377700177,1754496938837,255.822059,0.00024041,2]
[377700178,1754496939441,174.767621,0.0002412,2]
[377700179,1754496939891,537.02209052,0.0002412,2]
[377700180,1754496940233,268.51104526,0.00024126,2]
[377700181,1754496941034,271.186727,0.00024706,2]
[377700182,1754496976819,329.16,0.00024582,2]
[377700183,1754497007648,10599.69920425,0.00024606,2]
[377700184,1754497007671,15000.0,0.00024606,2]
[377700185,1754497007696,15000.0,0.00024606,2]
[377700186,1754497007721,15000.0,0.00024606,2]
[377700187,1754497007743,15000.0,0.00024606,2]
[377700188,1754497007765,4619.25006175,0.00024606,2]
[377700190,1754497047059,314.51,0.00024606,2]
[377700191,1754497049178,164.9999991,0.00024206,2]
[377700192,1754497094431,2170.0,0.0002478,2]
[377700193,1754497116813,279.57,0.00024206,2]
[377700194,1754497134662,151.48613984,0.00024493,2]
[377700195,1754497157917,259.23623143,0.00030136,120]
[377700196,1754497188299,248.5,0.00024493,2]
[377700204,1754497241432,257.86780421,0.00024393,2]
[377700205,1754497242056,367.0830784,0.00024428,2]
[377700206,1754497257926,220.89,0.00024428,2]
[377700207,1754497287006,210.489541,0.00013699,2]
[377700208,1754497287384,210.489541,0.00020187,2]
[377700210,1754497295468,257.0190579,0.00024204,2]
[377700211,1754497328329,214.73,0.00024204,2]
[377700212,1754497351707,5313.1147768,0.00024198,2]
[377700213,1754497351733,15000.0,0.00024198,2]
[377700214,1754497351759,4586.8852232,0.00024198,2]
[377700215,1754497357897,10013.0499966,0.00024217,2]
[377700218,1754497377155,400.0647802,0.0002,2]
[377700219,1754497377179,15000.0,0.0002,2]
[377700220,1754497377203,5109.69165931,0.0002,2]
[377700224,1754497399894,190.87,0.00024217,2]
[377700225,1754497424218,9699.43834069,0.0002,2]
[377700226,1754497424242,15000.0,0.0002,2]
[377700227,1754497424265,15000.0,0.0002,2]
[377700228,1754497424288,10300.56165931,0.0002,2]
[377700229,1754497444930,1000.0,0.00024046,2]
[377700230,1754497470126,169.67,0.00024,2]
[377700231,1754497482144,3529.76834069,0.00021,2]
[377700232,1754497482167,15000.0,0.00021,2]
[377700233,1754497482196,65932.02911931,0.00021,2]
[377700234,1754497539211,150.81,0.00023566,2]
[377700235,1754497542801,320.96669535,0.00024056,2]
[377700237,1754497554089,-468.410901,0.00024785,2]
[377700238,1754497554117,-308.85797275,0.000248,2]
[377700240,1754497603871,2994.74170082,0.00022506,2]
[377700241,1754497617623,280.0,0.00024658,2]
[377700242,1754497625509,150.0,0.00023989,2]
[377700243,1754497647608,7017.74232542,0.00024689,2]
[377700244,1754497662257,2662.5373772,0.00023938,2]
[377700246,1754497680143,1000.0,0.0003,120]
[377700254,1754497719014,3574.64240118,0.0002,20]
[377700255,1754497719891,12003.1033997,0.0002,2]
[377700257,1754497726670,9831.07955805,0.0002,2]
[377700258,1754497726703,658.93786144,0.0001843,2]
[377700259,1754497728300,17410.21256943,0.0001,2]
[377700260,1754497728407,202.68429238,0.00021,2]
[377700262,1754497728722,1006.72937546,0.000215,2]
[377700263,1754497728896,17713.33521413,0.0002249,7]
[377700264,1754497728996,85726.18521509,0.0002465,2]
[377700265,1754497729748,6000.0,0.00017,2]
[377700266,1754497756329,2409.0,0.0003,120]
[377700267,1754497761262,-1493.14699053,0.00024789,2]
[377700268,1754497773773,1000.0,0.0003,120]
[377700269,1754497809090,154.03160869,0.00024678,2]
[377700270,1754497809126,6629.78597253,0.00024678,2]
[377700297,1754497832590,-266.5778796,0.00024851,2]
[377700298,1754497832601,-160.0,0.00024866,2]
[377700299,1754497832611,-160.0,0.00024866,2]
[377700300,1754497832620,-500.0,0.00024873,2]
[377700301,1754497832630,-509.38329096,0.00024873,2]
[377700302,1754497832640,-300.0,0.00024877,2]
[377700303,1754497832649,-1200.0,0.00024877,2]
[377700304,1754497832661,-300.0,0.00024877,2]
[377700306,1754497832671,-180.0,0.00024877,2]
[377700309,1754497832681,-1224.13,0.00024878,2]
[377700313,1754497832690,-1224.13,0.00024878,2]
[377700316,1754497832700,-1224.13,0.00024878,2]
[377700319,1754497832710,-1224.13,0.00024878,2]
[377700320,1754497832720,-1224.13,0.00024878,2]
[377700322,1754497832730,-1183.96158175,0.00024878,2]
[377700332,1754497838170,-500.0,0.00024877,2]
[377700333,1754497838184,-375.7787049,0.00024877,2]
[377700334,1754497838196,-124.2212951,0.00024877,2]
[377700335,1754497838206,-500.0,0.00024877,2]
[377700336,1754497838216,-609.68694734,0.00024877,2]
[377700337,1754497838227,-153.7405963,0.00024877,2]
[377700338,1754497838237,-500.0,0.00024877,2]
[377700339,1754497838248,-241.95872906,0.00024877,2]
[377700340,1754497838257,-500.0,0.00024877,2]
[377700341,1754497838267,-500.0,0.00024877,2]
[377700342,1754497838277,-307.19854119,0.00024877,2]
[377700343,1754497838287,-500.0,0.00024877,2]
[377700345,1754497838297,-491.14734478,0.00024877,2]
[377700347,1754497838306,-438.04506643,0.00024877,2]
[377700348,1754497838316,-500.0,0.00024877,2]
[377700349,1754497838327,-500.0,0.00024877,2]
[377700351,1754497838337,-48816.03841825,0.00024878,2]
[377700353,1754497838349,-500.0,0.00024888,2]
[377700355,1754497838359,-155.54695558,0.00024888,2]
[377700357,1754497838369,-150.0,0.00024889,2]
[377700359,1754497838379,-1224.13,0.00024889,2]
[377700361,1754497838388,-1224.13,0.00024889,2]
[377700363,1754497838398,-1224.13,0.00024889,2]
[377700365,1754497838409,-1224.13,0.00024889,2]
[377700367,1754497838419,-1224.13,0.00024889,2]
[377700369,1754497838429,-1224.13,0.00024889,2]
[377700371,1754497838439,-1224.13,0.00024889,2]
[377700373,1754497838450,-1224.13,0.00024889,2]
[377700375,1754497838460,-1224.13,0.00024889,2]
[377700377,1754497838470,-1224.13,0.00024889,2]
[377700378,1754497838480,-1224.13,0.00024889,2]
[377700379,1754497838491,-1224.13,0.00024889,2]
[377700380,1754497838501,-1224.13,0.00024889,2]
[377700381,1754497838511,-1224.13,0.00024889,2]
[377700382,1754497838522,-1224.13,0.00024889,2]
[377700383,1754497838535,-1224.13,0.00024889,2]
[377700384,1754497838544,-1224.13,0.00024889,2]
[377700385,1754497838554,-1224.13,0.00024889,2]
[377700386,1754497838564,-1224.22,0.00024889,2]
[377700387,1754497838574,-500.0,0.00024973,2]
[377700388,1754497838586,-500.0,0.00024973,2]
[377700389,1754497838596,-500.0,0.00024973,2]
[377700390,1754497838605,-500.0,0.00024973,2]
[377700391,1754497838615,-500.0,0.00024973,2]
[377700392,1754497838625,-501.24979664,0.00024973,2]
[377700393,1754497838635,-500.0,0.00024973,2]
[377700394,1754497838645,-500.0,0.00024973,2]
[377700395,1754497838656,-500.0,0.00024973,2]
[377700396,1754497838669,-500.0,0.00024973,2]
[377700397,1754497838682,-500.0,0.00024973,2]
[377700398,1754497838697,-500.0,0.00024973,2]
[377700399,1754497838710,-500.0,0.00024973,2]
[377700400,1754497838724,-501.70565741,0.00024973,2]
[377700401,1754497838737,-239.95,0.0002499,10]
[377700402,1754497838750,-199.96,0.0002499,10]
[377700403,1754497838763,-166.63,0.0002499,10]
[377700404,1754497838774,-1200.0,0.00024997,2]
[377700405,1754497838786,-500.0,0.00024998,2]
[377700406,1754497838799,-154.8687881,0.00025,2]
[377700407,1754497838812,-119999.99999901,0.00025,2]
[377700408,1754497838824,-288.04865562,0.00025,5]
[377700409,1754497838837,-265.51914321,0.00025163,2]
[377700410,1754497838849,-254.52,0.00025228,3]
[377700411,1754497838861,-763.56,0.00025228,3]
[377700412,1754497838873,-500.0,0.00025272,2]
[377700413,1754497838885,-500.0,0.00025273,2]
[377700414,1754497838897,-500.0,0.00025273,2]
[377700415,1754497838909,-500.0,0.00025273,2]
[377700416,1754497838921,-29073.7074893,0.00025363,2]
[377700417,1754497838934,-463.5385095,0.00025363,2]
[377700418,1754497838946,-500.0,0.00025373,2]
[377700419,1754497838960,-500.0,0.00025373,2]
[377700420,1754497838971,-500.0,0.00025373,2]
[377700421,1754497838983,-738.19437193,0.00025421,2]
[377700422,1754497838994,-164.0,0.00025518,2]
[377700423,1754497839006,-1000.0,0.00025521,2]
[377700424,1754497839019,-1000.0,0.00025521,2]
[377700425,1754497839030,-1000.0,0.00025521,2]
[377700426,1754497839042,-1000.0,0.00025521,2]
[377700427,1754497839053,-154.59097771,0.00025521,2]
[377700428,1754497839067,-507.39031374,0.00025521,2]
[377700429,1754497839081,-1002.29930668,0.00025521,2]
[377700430,1754497839093,-504.84484149,0.00025521,2]
[377700431,1754497839104,-1000.0,0.00025521,2]
[377700432,1754497839118,-1000.0,0.00025521,2]
[377700433,1754497839130,-1000.0,0.00025521,2]
[377700434,1754497839143,-500.0,0.00025546,2]
[377700435,1754497839155,-6783.81758122,0.00025651,3]
[377700436,1754497839166,-5000.0,0.00025662,2]
[377700437,1754497839180,-164.0,0.00025717,2]
[377700438,1754497839192,-1000.0,0.00025821,2]
[377700439,1754497839204,-1000.0,0.00025821,2]
[377700440,1754497839216,-1000.0,0.00025821,2]
[377700441,1754497839228,-1000.0,0.00025921,2]
[377700442,1754497839240,-1000.0,0.00025921,2]
[377700443,1754497839252,-14828.87653987,0.0002599,2]
[377700444,1754497839264,-1000.0,0.00026,2]
[377700445,1754497839277,-1000.0,0.00026068,2]
[377700446,1754497839289,-1500.0,0.00026068,2]
[377700447,1754497839301,-1000.0,0.00026068,2]
[377700448,1754497839314,-1500.0,0.00026068,2]
[377700449,1754497839325,-239.0491143,0.00026068,2]
[377700450,1754497839338,-1500.0,0.00026068,2]
[377700451,1754497839350,-1500.0,0.00026068,2]
[377700452,1754497839365,-200.0,0.00026121,15]
[377700453,1754497839377,-300.0,0.00026121,15]
[377700454,1754497839387,-151.0,0.000262,11]
[377700455,1754497839398,-29073.7074893,0.0002624,2]
[377700456,1754497839409,-463.5385095,0.0002624,2]
[377700457,1754497839420,-160.0,0.0002625,3]
[377700458,1754497839431,-231.78005385,0.0002625,3]
[377700459,1754497839443,-12657.93264304,0.0002625,3]
[377700460,1754497839454,-216.47163855,0.0002625,3]
[377700461,1754497839468,-160.0,0.0002625,3]
[377700462,1754497839481,-160.0,0.0002625,3]